[Event "Titled Tuesday Blitz July 6 2021"]
[White "Alexeev, Alexey"]
[Black "Sardana, Rishi"]
[WhiteFideId "14106663"]
[BlackFideId "25004301"]
[WhiteElo "2185"]
[BlackElo "2340"]
[Result "0-1"]
[Round "01"]
[TimeControl "180+1"]
[Date "2021.07.06"]
[WhiteClock "0:00:01"]
[BlackClock "0:00:04"]

1. e4 {[%clk 0:03:00]}  c5 {[%clk 0:02:59]} 2. Nf3 {[%clk 0:02:59]}  d6 {[%clk 0:02:57]} 3. Bb5+ {[%clk 0:02:58]}  Bd7 {[%clk 0:02:56]} 4. Bxd7+ {[%clk 0:02:58]}  Nxd7 {[%clk 0:02:57]} 5. c4 {[%clk 0:02:57]}  Ngf6 {[%clk 0:02:57]} 6. Nc3 {[%clk 0:02:56]}  g6 {[%clk 0:02:57]} 7. d4 {[%clk 0:02:54]}  cxd4 {[%clk 0:02:57]} 8. Nxd4 {[%clk 0:02:54]}  Bg7 {[%clk 0:02:57]} 9. b3 {[%clk 0:02:54]}  O-O {[%clk 0:02:57]} 10. Bb2 {[%clk 0:02:54]}  a6 {[%clk 0:02:22]} 11. O-O {[%clk 0:02:52]}  Rc8 {[%clk 0:02:22]} 12. Rc1 {[%clk 0:02:48]}  Qa5 {[%clk 0:02:22]} 13. Qe2 {[%clk 0:02:45]}  Rfe8 {[%clk 0:02:19]} 14. Kh1 {[%clk 0:02:41]}  e6 {[%clk 0:02:11]} 15. f4 {[%clk 0:02:34]}  Nh5 {[%clk 0:01:03]} 16. Qf2 {[%clk 0:02:09]}  Nc5 {[%clk 0:01:02]} 17. Rcd1 {[%clk 0:02:02]}  b5 {[%clk 0:01:01]} 18. cxb5 {[%clk 0:01:56]}  axb5 {[%clk 0:01:02]} 19. Ndxb5 {[%clk 0:01:55]}  d5 {[%clk 0:00:29]} 20. exd5 {[%clk 0:01:26]}  exd5 {[%clk 0:00:30]} 21. Rxd5 {[%clk 0:01:23]}  Ne4 {[%clk 0:00:18]} 22. Nxe4 {[%clk 0:01:11]}  Rxe4 {[%clk 0:00:19]} 23. Nc3 {[%clk 0:00:53]}  Qa8 {[%clk 0:00:13]} 24. Nxe4 {[%clk 0:00:41]}  Qxd5 {[%clk 0:00:12]} 25. Bxg7 {[%clk 0:00:33]}  Qxe4 {[%clk 0:00:12]} 26. Be5 {[%clk 0:00:26]}  Rc2 {[%clk 0:00:12]} 27. Qf3 {[%clk 0:00:16]}  Qxf3 {[%clk 0:00:12]} 28. gxf3 {[%clk 0:00:17]}  Rxa2 {[%clk 0:00:13]} 29. Rb1 {[%clk 0:00:16]}  f6 {[%clk 0:00:12]} 30. Bd4 {[%clk 0:00:11]}  Nxf4 {[%clk 0:00:11]} 31. Bxf6 {[%clk 0:00:11]}  Kf7 {[%clk 0:00:10]} 32. Be5 {[%clk 0:00:09]}  Nd3 {[%clk 0:00:10]} 33. Bg3 {[%clk 0:00:09]}  h5 {[%clk 0:00:10]} 34. b4 {[%clk 0:00:08]}  g5 {[%clk 0:00:06]} 35. b5 {[%clk 0:00:08]}  h4 {[%clk 0:00:07]} 36. Bc7 {[%clk 0:00:08]}  Nf2+ {[%clk 0:00:07]} 37. Kg1 {[%clk 0:00:07]}  Nh3+ {[%clk 0:00:07]} 38. Kf1 {[%clk 0:00:05]}  Ke6 {[%clk 0:00:07]} 39. b6 {[%clk 0:00:05]}  Rf2+ {[%clk 0:00:04]} 40. Ke1 {[%clk 0:00:05]}  Rg2 {[%clk 0:00:05]} 41. Rb5 {[%clk 0:00:02]}  Ng1 {[%clk 0:00:04]} 42. Kf1 {[%clk 0:00:01]}  h3 {[%clk 0:00:04]} 0-1


[Site "https://www.chess.com"]

[Event "Titled Tuesday Blitz July 6 2021"]
[White "Altman, Joshua"]
[Black "Dang, Hoang Son"]
[WhiteFideId "426210"]
[BlackFideId "12402435"]
[WhiteElo "1945"]
[BlackElo "2248"]
[Result "0-1"]
[Round "01"]
[TimeControl "180+1"]
[Date "2021.07.06"]
[WhiteClock "0:00:04"]
[BlackClock "0:00:34"]

1. d4 {[%clk 0:03:00]}  Nf6 {[%clk 0:03:00]} 2. c4 {[%clk 0:02:59]}  g6 {[%clk 0:03:00]} 3. Nc3 {[%clk 0:03:00]}  Bg7 {[%clk 0:03:01]} 4. Nf3 {[%clk 0:03:00]}  O-O {[%clk 0:03:02]} 5. Bg5 {[%clk 0:03:00]}  d6 {[%clk 0:03:03]} 6. e3 {[%clk 0:03:01]}  Nbd7 {[%clk 0:03:01]} 7. Be2 {[%clk 0:03:01]}  e5 {[%clk 0:03:00]} 8. Qc2 {[%clk 0:03:01]}  h6 {[%clk 0:02:59]} 9. Bh4 {[%clk 0:03:00]}  g5 {[%clk 0:02:58]} 10. Bg3 {[%clk 0:03:00]}  Nh5 {[%clk 0:02:57]} 11. dxe5 {[%clk 0:02:58]}  Nxg3 {[%clk 0:02:53]} 12. hxg3 {[%clk 0:02:58]}  Nxe5 {[%clk 0:02:54]} 13. Nxe5 {[%clk 0:02:52]}  dxe5 {[%clk 0:02:55]} 14. O-O {[%clk 0:02:48]}  c6 {[%clk 0:02:53]} 15. Rfd1 {[%clk 0:02:47]}  Qe7 {[%clk 0:02:49]} 16. Ne4 {[%clk 0:02:38]}  Bf5 {[%clk 0:02:46]} 17. Bd3 {[%clk 0:02:38]}  Bg6 {[%clk 0:02:43]} 18. c5 {[%clk 0:02:36]}  Kh8 {[%clk 0:02:31]} 19. Nd6 {[%clk 0:02:34]}  Bxd3 {[%clk 0:02:02]} 20. Rxd3 {[%clk 0:02:28]}  e4 {[%clk 0:01:55]} 21. Rd2 {[%clk 0:02:11]}  f5 {[%clk 0:01:55]} 22. Rad1 {[%clk 0:02:08]}  Rf6 {[%clk 0:01:53]} 23. g4 {[%clk 0:01:56]}  f4 {[%clk 0:01:44]} 24. Nxe4 {[%clk 0:01:54]}  Rf7 {[%clk 0:01:44]} 25. Nd6 {[%clk 0:01:48]}  fxe3 {[%clk 0:01:42]} 26. Nxf7+ {[%clk 0:01:43]}  Qxf7 {[%clk 0:01:42]} 27. fxe3 {[%clk 0:01:43]}  Qe7 {[%clk 0:01:42]} 28. Rd7 {[%clk 0:01:30]}  Qxe3+ {[%clk 0:01:42]} 29. Kh1 {[%clk 0:01:30]}  Rf8 {[%clk 0:01:37]} 30. Qg6 {[%clk 0:01:23]}  Qe5 {[%clk 0:01:35]} 31. Rxb7 {[%clk 0:01:18]}  Rg8 {[%clk 0:01:22]} 32. Qxc6 {[%clk 0:01:02]}  Qg3 {[%clk 0:01:05]} 33. Qf3 {[%clk 0:01:01]}  Qh4+ {[%clk 0:01:06]} 34. Qh3 {[%clk 0:01:00]}  Qf2 {[%clk 0:01:06]} 35. c6 {[%clk 0:00:39]}  Qc2 {[%clk 0:01:03]} 36. Qd3 {[%clk 0:00:22]}  Qxc6 {[%clk 0:01:02]} 37. Qd7 {[%clk 0:00:20]}  Qe4 {[%clk 0:00:59]} 38. Rxa7 {[%clk 0:00:17]}  Qe2 {[%clk 0:00:56]} 39. Qd3 {[%clk 0:00:12]}  Qxb2 {[%clk 0:00:54]} 40. Qg6 {[%clk 0:00:09]}  Qe2 {[%clk 0:00:44]} 41. Rb1 {[%clk 0:00:06]}  Qxg4 {[%clk 0:00:41]} 42. Rxg7 {[%clk 0:00:06]}  Qh4+ {[%clk 0:00:42]} 43. Kg1 {[%clk 0:00:05]}  Qd4+ {[%clk 0:00:43]} 44. Kh1 {[%clk 0:00:06]}  Qxg7 {[%clk 0:00:43]} 45. Qxg7+ {[%clk 0:00:07]}  Kxg7 {[%clk 0:00:41]} 46. Rb7+ {[%clk 0:00:07]}  Kg6 {[%clk 0:00:42]} 47. Ra7 {[%clk 0:00:06]}  h5 {[%clk 0:00:39]} 48. Ra6+ {[%clk 0:00:06]}  Kf5 {[%clk 0:00:39]} 49. Kg1 {[%clk 0:00:06]}  h4 {[%clk 0:00:39]} 50. Kf2 {[%clk 0:00:07]}  Kg4 {[%clk 0:00:39]} 51. Ra4+ {[%clk 0:00:07]}  Kh5 {[%clk 0:00:40]} 52. Ra5 {[%clk 0:00:08]}  Rb8 {[%clk 0:00:40]} 53. a4 {[%clk 0:00:08]}  Rb2+ {[%clk 0:00:40]} 54. Kf3 {[%clk 0:00:09]}  Rb3+ {[%clk 0:00:40]} 55. Kf2 {[%clk 0:00:09]}  Kg4 {[%clk 0:00:40]} 56. Ra8 {[%clk 0:00:08]}  Ra3 {[%clk 0:00:41]} 57. a5 {[%clk 0:00:08]}  Ra2+ {[%clk 0:00:41]} 58. Ke3 {[%clk 0:00:08]}  Rxg2 {[%clk 0:00:41]} 59. a6 {[%clk 0:00:09]}  Ra2 {[%clk 0:00:41]} 60. a7 {[%clk 0:00:10]}  h3 {[%clk 0:00:40]} 61. Ke4 {[%clk 0:00:09]}  h2 {[%clk 0:00:34]} 62. Rh8 {[%clk 0:00:09]}  Kg3 {[%clk 0:00:34]} 63. Ke3 {[%clk 0:00:04]}  Rxa7 {[%clk 0:00:34]} 0-1


[Site "https://www.chess.com"]

[Event "Titled Tuesday Blitz July 6 2021"]
[White "Deepan Chakkravarthy J."]
[Black "Kotepalli, Sai Nirupama"]
[WhiteFideId "5011132"]
[BlackFideId "5039444"]
[WhiteElo "2490"]
[BlackElo "2401"]
[Result "1-0"]
[Round "01"]
[TimeControl "180+1"]
[Date "2021.07.06"]
[WhiteClock "0:00:15"]
[BlackClock "0:00:01"]

1. Nf3 {[%clk 0:02:59]}  Nc6 {[%clk 0:02:57]} 2. d4 {[%clk 0:02:58]}  e6 {[%clk 0:02:50]} 3. e4 {[%clk 0:02:54]}  d5 {[%clk 0:02:44]} 4. Nc3 {[%clk 0:02:51]}  g6 {[%clk 0:02:41]} 5. Be3 {[%clk 0:02:42]}  Bg7 {[%clk 0:02:40]} 6. Qd2 {[%clk 0:02:40]}  Nge7 {[%clk 0:02:37]} 7. O-O-O {[%clk 0:02:32]}  dxe4 {[%clk 0:02:31]} 8. Nxe4 {[%clk 0:02:31]}  Nf5 {[%clk 0:02:29]} 9. Bg5 {[%clk 0:02:30]}  f6 {[%clk 0:02:27]} 10. Bf4 {[%clk 0:02:27]}  O-O {[%clk 0:02:22]} 11. g4 {[%clk 0:02:21]}  Qd5 {[%clk 0:02:18]} 12. Qd3 {[%clk 0:02:11]}  Nfxd4 {[%clk 0:02:06]} 13. Nxd4 {[%clk 0:02:08]}  Nxd4 {[%clk 0:01:57]} 14. Bg2 {[%clk 0:01:32]}  Qxa2 {[%clk 0:01:49]} 15. Nc3 {[%clk 0:01:19]}  Qa1+ {[%clk 0:01:42]} 16. Kd2 {[%clk 0:01:18]}  Qxb2 {[%clk 0:01:07]} 17. Qxd4 {[%clk 0:01:06]}  e5 {[%clk 0:00:52]} 18. Qc4+ {[%clk 0:01:01]}  Kh8 {[%clk 0:00:51]} 19. Be3 {[%clk 0:00:58]}  Rd8+ {[%clk 0:00:33]} 20. Ke1 {[%clk 0:00:54]}  Bxg4 {[%clk 0:00:28]} 21. Rc1 {[%clk 0:00:40]}  b5 {[%clk 0:00:16]} 22. Qxg4 {[%clk 0:00:36]}  Qxc3+ {[%clk 0:00:15]} 23. Kf1 {[%clk 0:00:36]}  Rab8 {[%clk 0:00:13]} 24. Qe2 {[%clk 0:00:29]}  f5 {[%clk 0:00:13]} 25. Bg5 {[%clk 0:00:29]}  Rd7 {[%clk 0:00:12]} 26. h4 {[%clk 0:00:29]}  h6 {[%clk 0:00:11]} 27. Rh3 {[%clk 0:00:25]}  Qc4 {[%clk 0:00:10]} 28. Rd3 {[%clk 0:00:21]}  Rxd3 {[%clk 0:00:06]} 29. cxd3 {[%clk 0:00:21]}  Qe6 {[%clk 0:00:06]} 30. Bd2 {[%clk 0:00:22]}  Rc8 {[%clk 0:00:04]} 31. Bb4 {[%clk 0:00:21]}  c5 {[%clk 0:00:03]} 32. Rxc5 {[%clk 0:00:21]}  Rxc5 {[%clk 0:00:02]} 33. Bxc5 {[%clk 0:00:22]}  Qc8 {[%clk 0:00:03]} 34. Qe3 {[%clk 0:00:20]}  Qd8 {[%clk 0:00:02]} 35. Bc6 {[%clk 0:00:18]}  f4 {[%clk 0:00:02]} 36. Qe4 {[%clk 0:00:18]}  Qxh4 {[%clk 0:00:01]} 37. Ke2 {[%clk 0:00:17]}  Qg4+ {[%clk 0:00:01]} 38. Kd2 {[%clk 0:00:17]}  a6 {[%clk 0:00:01]} 39. Bb7 {[%clk 0:00:15]} 1-0


[Site "https://www.chess.com"]

[Event "Titled Tuesday Blitz July 6 2021"]
[White "Dobrov, Vladimir"]
[Black "Zong, Davis"]
[WhiteFideId "4136594"]
[BlackFideId "30903955"]
[WhiteElo "2614"]
[BlackElo "2411"]
[Result "1-0"]
[Round "01"]
[TimeControl "180+1"]
[Date "2021.07.06"]
[WhiteClock "0:00:41"]
[BlackClock "0:00:11"]

1. d4 {[%clk 0:02:49]}  d5 {[%clk 0:03:00]} 2. c4 {[%clk 0:02:49]}  c6 {[%clk 0:03:00]} 3. Nc3 {[%clk 0:02:48]}  Nf6 {[%clk 0:03:00]} 4. Nf3 {[%clk 0:02:47]}  e6 {[%clk 0:03:00]} 5. Qd3 {[%clk 0:02:45]}  dxc4 {[%clk 0:02:56]} 6. Qxc4 {[%clk 0:02:45]}  b5 {[%clk 0:02:57]} 7. Qd3 {[%clk 0:02:45]}  a6 {[%clk 0:02:51]} 8. Bg5 {[%clk 0:02:45]}  Nbd7 {[%clk 0:02:36]} 9. e4 {[%clk 0:02:29]}  h6 {[%clk 0:02:25]} 10. Bh4 {[%clk 0:02:28]}  Qb6 {[%clk 0:02:04]} 11. e5 {[%clk 0:02:25]}  Nd5 {[%clk 0:02:02]} 12. Nxd5 {[%clk 0:02:25]}  cxd5 {[%clk 0:01:54]} 13. Be2 {[%clk 0:02:22]}  Bb4+ {[%clk 0:01:39]} 14. Kf1 {[%clk 0:02:19]}  O-O {[%clk 0:01:30]} 15. a3 {[%clk 0:02:18]}  g5 {[%clk 0:01:18]} 16. Bxg5 {[%clk 0:02:00]}  hxg5 {[%clk 0:01:13]} 17. Nxg5 {[%clk 0:02:01]}  f5 {[%clk 0:01:11]} 18. axb4 {[%clk 0:01:48]}  Bb7 {[%clk 0:00:46]} 19. Qg3 {[%clk 0:01:28]}  Rfc8 {[%clk 0:00:22]} 20. Bd3 {[%clk 0:01:15]}  Kf8 {[%clk 0:00:19]} 21. Qh4 {[%clk 0:01:08]}  Ke8 {[%clk 0:00:18]} 22. g4 {[%clk 0:00:50]}  Nf8 {[%clk 0:00:10]} 23. gxf5 {[%clk 0:00:48]}  Kd7 {[%clk 0:00:09]} 24. fxe6+ {[%clk 0:00:46]}  Kc7 {[%clk 0:00:10]} 25. e7 {[%clk 0:00:44]}  Nd7 {[%clk 0:00:09]} 26. Rc1+ {[%clk 0:00:42]}  Kb8 {[%clk 0:00:10]} 27. Rxc8+ {[%clk 0:00:41]}  Bxc8 {[%clk 0:00:11]} 1-0


[Site "https://www.chess.com"]

[Event "Titled Tuesday Blitz July 6 2021"]
[White "Estrada Nieto, Julian"]
[Black "Priasmoro, Novendra"]
[WhiteFideId "5101018"]
[BlackFideId "7105029"]
[WhiteElo "2270"]
[BlackElo "2309"]
[Result "0-1"]
[Round "01"]
[TimeControl "180+1"]
[Date "2021.07.06"]
[WhiteClock "0:00:06"]
[BlackClock "0:02:02"]

1. e4 {[%clk 0:03:00]}  c5 {[%clk 0:02:58]} 2. Nf3 {[%clk 0:03:01]}  Nc6 {[%clk 0:02:55]} 3. Bb5 {[%clk 0:02:59]}  g6 {[%clk 0:02:54]} 4. c3 {[%clk 0:02:59]}  Bg7 {[%clk 0:02:51]} 5. O-O {[%clk 0:02:57]}  Nf6 {[%clk 0:02:50]} 6. Qe2 {[%clk 0:02:57]}  O-O {[%clk 0:02:49]} 7. Rd1 {[%clk 0:02:56]}  e5 {[%clk 0:02:42]} 8. d3 {[%clk 0:02:25]}  d6 {[%clk 0:02:40]} 9. Bg5 {[%clk 0:02:20]}  h6 {[%clk 0:02:39]} 10. Bh4 {[%clk 0:02:20]}  a6 {[%clk 0:02:31]} 11. Bc4 {[%clk 0:02:07]}  Qc7 {[%clk 0:02:27]} 12. Nbd2 {[%clk 0:01:56]}  b5 {[%clk 0:02:26]} 13. Bxf6 {[%clk 0:01:53]}  Bxf6 {[%clk 0:02:25]} 14. Bd5 {[%clk 0:01:53]}  Bb7 {[%clk 0:02:25]} 15. Nf1 {[%clk 0:01:51]}  Ne7 {[%clk 0:02:22]} 16. Bxb7 {[%clk 0:01:48]}  Qxb7 {[%clk 0:02:23]} 17. Ne3 {[%clk 0:01:45]}  Bg7 {[%clk 0:02:20]} 18. Qc2 {[%clk 0:01:15]}  d5 {[%clk 0:02:17]} 19. exd5 {[%clk 0:01:14]}  Nxd5 {[%clk 0:02:18]} 20. Nxd5 {[%clk 0:01:14]}  Qxd5 {[%clk 0:02:19]} 21. a4 {[%clk 0:01:11]}  Rab8 {[%clk 0:02:16]} 22. axb5 {[%clk 0:01:11]}  axb5 {[%clk 0:02:17]} 23. c4 {[%clk 0:01:08]}  bxc4 {[%clk 0:02:15]} 24. dxc4 {[%clk 0:01:08]}  Qe6 {[%clk 0:02:15]} 25. Re1 {[%clk 0:00:55]}  f5 {[%clk 0:02:13]} 26. Ra2 {[%clk 0:00:30]}  e4 {[%clk 0:02:10]} 27. h3 {[%clk 0:00:29]}  Qf6 {[%clk 0:02:09]} 28. Nd2 {[%clk 0:00:23]}  Rxb2 {[%clk 0:02:07]} 29. Rxb2 {[%clk 0:00:23]}  Qxb2 {[%clk 0:02:08]} 30. Rc1 {[%clk 0:00:16]}  Qxc2 {[%clk 0:02:07]} 31. Rxc2 {[%clk 0:00:17]}  Rb8 {[%clk 0:02:07]} 32. g4 {[%clk 0:00:15]}  Bd4 {[%clk 0:02:06]} 33. Kg2 {[%clk 0:00:15]}  Kf7 {[%clk 0:02:06]} 34. gxf5 {[%clk 0:00:15]}  gxf5 {[%clk 0:02:07]} 35. Nf1 {[%clk 0:00:15]}  Rg8+ {[%clk 0:02:04]} 36. Kh2 {[%clk 0:00:13]}  Ke6 {[%clk 0:02:04]} 37. Ra2 {[%clk 0:00:12]}  f4 {[%clk 0:02:00]} 38. Ra6+ {[%clk 0:00:09]}  Kf5 {[%clk 0:02:00]} 39. Rxh6 {[%clk 0:00:08]}  Bxf2 {[%clk 0:02:00]} 40. Rh5+ {[%clk 0:00:08]}  Ke6 {[%clk 0:02:01]} 41. Rh6+ {[%clk 0:00:08]}  Ke5 {[%clk 0:02:02]} 42. Rh5+ {[%clk 0:00:06]}  Kd4 {[%clk 0:02:02]} 0-1


[Site "https://www.chess.com"]

[Event "Titled Tuesday Blitz July 6 2021"]
[White "Galego, Luis"]
[Black "Zhigalko, Sergei"]
[WhiteFideId "1900072"]
[BlackFideId "13502956"]
[WhiteElo "2524"]
[BlackElo "2662"]
[Result "0-1"]
[Round "01"]
[TimeControl "180+1"]
[Date "2021.07.06"]
[WhiteClock "0:01:00"]
[BlackClock "0:00:57"]

1. e4 {[%clk 0:02:56]}  c5 {[%clk 0:02:59]} 2. Nf3 {[%clk 0:02:56]}  Nc6 {[%clk 0:02:58]} 3. d4 {[%clk 0:02:57]}  cxd4 {[%clk 0:02:57]} 4. Nxd4 {[%clk 0:02:57]}  Nf6 {[%clk 0:02:57]} 5. Nc3 {[%clk 0:02:55]}  e5 {[%clk 0:02:58]} 6. Ndb5 {[%clk 0:02:55]}  d6 {[%clk 0:02:57]} 7. Nd5 {[%clk 0:02:54]}  Nxd5 {[%clk 0:02:57]} 8. exd5 {[%clk 0:02:54]}  Nb8 {[%clk 0:02:58]} 9. c4 {[%clk 0:02:54]}  Be7 {[%clk 0:02:58]} 10. Be2 {[%clk 0:02:54]}  a6 {[%clk 0:02:58]} 11. Nc3 {[%clk 0:02:53]}  O-O {[%clk 0:02:59]} 12. O-O {[%clk 0:02:53]}  f5 {[%clk 0:02:59]} 13. f3 {[%clk 0:02:51]}  Nd7 {[%clk 0:02:57]} 14. Be3 {[%clk 0:02:51]}  Bg5 {[%clk 0:02:57]} 15. Qd2 {[%clk 0:02:51]}  Bxe3+ {[%clk 0:02:51]} 16. Qxe3 {[%clk 0:02:51]}  a5 {[%clk 0:02:41]} 17. b3 {[%clk 0:02:32]}  Nc5 {[%clk 0:02:39]} 18. Rab1 {[%clk 0:02:32]}  f4 {[%clk 0:02:34]} 19. Qd2 {[%clk 0:02:30]}  Bf5 {[%clk 0:02:34]} 20. Rb2 {[%clk 0:02:06]}  Rf6 {[%clk 0:02:30]} 21. a3 {[%clk 0:01:48]}  Rh6 {[%clk 0:02:11]} 22. Qe1 {[%clk 0:01:48]}  Qg5 {[%clk 0:01:50]} 23. Qf2 {[%clk 0:01:39]}  Qh5 {[%clk 0:01:36]} 24. h3 {[%clk 0:01:32]}  Bxh3 {[%clk 0:01:29]} 25. gxh3 {[%clk 0:01:32]}  Qxh3 {[%clk 0:01:28]} 26. Qg2 {[%clk 0:01:22]}  Rg6 {[%clk 0:01:27]} 27. Rf2 {[%clk 0:01:22]}  Rxg2+ {[%clk 0:01:17]} 28. Rxg2 {[%clk 0:01:23]}  e4 {[%clk 0:01:00]} 29. Rh2 {[%clk 0:01:00]}  Qg3+ {[%clk 0:00:57]} 0-1


[Site "https://www.chess.com"]

[Event "Titled Tuesday Blitz July 6 2021"]
[White "Garcia Blanco, Omar"]
[Black "Howell, David W L"]
[WhiteFideId "2287153"]
[BlackFideId "410608"]
[WhiteElo "2273"]
[BlackElo "2643"]
[Result "0-1"]
[Round "01"]
[TimeControl "180+1"]
[Date "2021.07.06"]
[WhiteClock "0:00:02"]
[BlackClock "0:00:07"]

1. e4 {[%clk 0:02:58]}  c5 {[%clk 0:02:59]} 2. c3 {[%clk 0:02:57]}  d5 {[%clk 0:02:47]} 3. exd5 {[%clk 0:02:58]}  Qxd5 {[%clk 0:02:48]} 4. d4 {[%clk 0:02:58]}  g6 {[%clk 0:02:49]} 5. Nf3 {[%clk 0:02:57]}  Bg7 {[%clk 0:02:48]} 6. Na3 {[%clk 0:02:57]}  cxd4 {[%clk 0:02:39]} 7. Bc4 {[%clk 0:02:58]}  Qe4+ {[%clk 0:02:39]} 8. Be3 {[%clk 0:02:58]}  Nh6 {[%clk 0:02:39]} 9. cxd4 {[%clk 0:02:57]}  O-O {[%clk 0:02:34]} 10. Nb5 {[%clk 0:02:57]}  Nc6 {[%clk 0:02:23]} 11. Nc3 {[%clk 0:02:56]}  Qf5 {[%clk 0:02:17]} 12. h3 {[%clk 0:02:55]}  Rd8 {[%clk 0:02:12]} 13. Qd2 {[%clk 0:02:26]}  Qh5 {[%clk 0:01:42]} 14. Be2 {[%clk 0:02:05]}  Ng4 {[%clk 0:01:17]} 15. Nh2 {[%clk 0:01:46]}  Nxe3 {[%clk 0:01:10]} 16. Bxh5 {[%clk 0:01:43]}  Nxg2+ {[%clk 0:01:11]} 17. Kf1 {[%clk 0:01:20]}  Rxd4 {[%clk 0:01:11]} 18. Qg5 {[%clk 0:00:49]}  Bxh3 {[%clk 0:01:07]} 19. Bf3 {[%clk 0:00:28]}  Nh4+ {[%clk 0:00:47]} 20. Ke1 {[%clk 0:00:20]}  Rad8 {[%clk 0:00:48]} 21. Rd1 {[%clk 0:00:19]}  Rxd1+ {[%clk 0:00:32]} 22. Nxd1 {[%clk 0:00:19]}  Nxf3+ {[%clk 0:00:28]} 23. Nxf3 {[%clk 0:00:20]}  Bf5 {[%clk 0:00:29]} 24. Qe3 {[%clk 0:00:19]}  h5 {[%clk 0:00:26]} 25. Nc3 {[%clk 0:00:18]}  Bf6 {[%clk 0:00:25]} 26. Rg1 {[%clk 0:00:17]}  Kg7 {[%clk 0:00:24]} 27. Ng5 {[%clk 0:00:16]}  Nd4 {[%clk 0:00:21]} 28. Kf1 {[%clk 0:00:12]}  Nc2 {[%clk 0:00:21]} 29. Qf3 {[%clk 0:00:10]}  Rd2 {[%clk 0:00:13]} 30. Nge4 {[%clk 0:00:08]}  Bg4 {[%clk 0:00:11]} 31. Nxd2 {[%clk 0:00:05]}  Bxf3 {[%clk 0:00:10]} 32. Nxf3 {[%clk 0:00:06]}  Nb4 {[%clk 0:00:11]} 33. Ke2 {[%clk 0:00:06]}  Nc6 {[%clk 0:00:09]} 34. Ne4 {[%clk 0:00:06]}  Bxb2 {[%clk 0:00:09]} 35. Rb1 {[%clk 0:00:06]}  Ba3 {[%clk 0:00:09]} 36. Rxb7 {[%clk 0:00:07]}  f5 {[%clk 0:00:07]} 37. Neg5 {[%clk 0:00:06]}  Kf6 {[%clk 0:00:07]} 38. Nh7+ {[%clk 0:00:06]}  Kg7 {[%clk 0:00:06]} 39. Nhg5 {[%clk 0:00:06]}  Kf6 {[%clk 0:00:07]} 40. Rc7 {[%clk 0:00:07]}  Nd8 {[%clk 0:00:03]} 41. Nh7+ {[%clk 0:00:07]}  Kg7 {[%clk 0:00:03]} 42. Nhg5 {[%clk 0:00:08]}  Kf6 {[%clk 0:00:04]} 43. Rd7 {[%clk 0:00:08]}  Nc6 {[%clk 0:00:03]} 44. Rd3 {[%clk 0:00:06]}  Bd6 {[%clk 0:00:02]} 45. Rc3 {[%clk 0:00:05]}  Nb4 {[%clk 0:00:03]} 46. a3 {[%clk 0:00:03]}  Nd5 {[%clk 0:00:03]} 47. Rb3 {[%clk 0:00:03]}  Nf4+ {[%clk 0:00:03]} 48. Kf1 {[%clk 0:00:04]}  e5 {[%clk 0:00:03]} 49. Nh7+ {[%clk 0:00:03]}  Kg7 {[%clk 0:00:03]} 50. Nhg5 {[%clk 0:00:04]}  e4 {[%clk 0:00:03]} 51. Ne1 {[%clk 0:00:03]}  Kf6 {[%clk 0:00:04]} 52. Nh3 {[%clk 0:00:03]}  Ne6 {[%clk 0:00:03]} 53. f3 {[%clk 0:00:03]}  exf3 {[%clk 0:00:03]} 54. Nxf3 {[%clk 0:00:04]}  g5 {[%clk 0:00:03]} 55. Nf2 {[%clk 0:00:04]}  g4 {[%clk 0:00:03]} 56. Nd2 {[%clk 0:00:04]}  h4 {[%clk 0:00:03]} 57. Rd3 {[%clk 0:00:03]}  Bf4 {[%clk 0:00:03]} 58. Nc4 {[%clk 0:00:03]}  h3 {[%clk 0:00:03]} 59. Nxh3 {[%clk 0:00:02]}  gxh3 {[%clk 0:00:04]} 60. Rxh3 {[%clk 0:00:02]}  Bc7 {[%clk 0:00:03]} 61. Rd3 {[%clk 0:00:03]}  Ke7 {[%clk 0:00:03]} 62. Rd2 {[%clk 0:00:03]}  Bf4 {[%clk 0:00:02]} 63. Re2 {[%clk 0:00:03]}  Kf6 {[%clk 0:00:02]} 64. Ne3 {[%clk 0:00:03]}  Bxe3 {[%clk 0:00:02]} 65. Rxe3 {[%clk 0:00:04]}  Nd4 {[%clk 0:00:02]} 66. Rd3 {[%clk 0:00:04]}  Nb5 {[%clk 0:00:02]} 67. Kf2 {[%clk 0:00:05]}  Ke5 {[%clk 0:00:02]} 68. Kf3 {[%clk 0:00:04]}  Nd6 {[%clk 0:00:02]} 69. Re3+ {[%clk 0:00:04]}  Ne4 {[%clk 0:00:02]} 70. Ke2 {[%clk 0:00:04]}  Kd4 {[%clk 0:00:02]} 71. Kf3 {[%clk 0:00:03]}  Kc4 {[%clk 0:00:03]} 72. Kf4 {[%clk 0:00:03]}  Nc3 {[%clk 0:00:03]} 73. Kxf5 {[%clk 0:00:02]}  Nd5 {[%clk 0:00:04]} 74. Re4+ {[%clk 0:00:02]}  Kb3 {[%clk 0:00:04]} 75. a4 {[%clk 0:00:01]}  Nc3 {[%clk 0:00:03]} 76. Re3 {[%clk 0:00:01]}  a5 {[%clk 0:00:04]} 77. Ke5 {[%clk 0:00:01]}  Kb4 {[%clk 0:00:04]} 78. Kd4 {[%clk 0:00:02]}  Nxa4 {[%clk 0:00:05]} 79. Re4 {[%clk 0:00:02]}  Kb3 {[%clk 0:00:05]} 80. Kd3 {[%clk 0:00:02]}  Nc5+ {[%clk 0:00:05]} 81. Kd4 {[%clk 0:00:01]}  Nxe4 {[%clk 0:00:06]} 82. Kxe4 {[%clk 0:00:02]}  a4 {[%clk 0:00:07]} 83. Kd3 {[%clk 0:00:02]}  a3 {[%clk 0:00:07]} 0-1


[Site "https://www.chess.com"]